bitfinex/quotes_SOLUSD_20250410
["timestamp","ask_amount","ask_price","bid_price","bid_amount"]
[1744260664538,9.72320773,115.64,115.61,16.6297]
[1744260665314,9.72320773,115.63,115.61,7.98]
[1744260665521,9.72320773,115.62,115.61,7.98]
[1744260665718,9.72320773,115.62,115.58,18.2241]
[1744260666418,18.37220773,115.62,115.58,18.2241]
[1744260666948,9.72320773,115.62,115.58,18.2241]
[1744260667244,18.37180773,115.63,115.58,27.94730773]
[1744260668531,87.8879,115.68,115.59,28.37285659]
[1744260668724,9.72320773,115.66,115.61,9.72320773]
[1744260669542,9.72320773,115.66,115.61,17.70320773]
[1744260669739,8.6452,115.67,115.61,17.70320773]
[1744260669923,9.75320773,115.68,115.63,11.27830773]
[1744260670340,9.75320773,115.68,115.64,8.6475]
[1744260670925,9.72320773,115.67,115.64,8.6475]
[1744260671126,9.72320773,115.67,115.63,10.203]
[1744260671326,9.72320773,115.66,115.63,10.203]
[1744260671935,9.72320773,115.67,115.63,10.203]
[1744260672547,18.39770773,115.68,115.63,10.203]
[1744260672746,18.39770773,115.68,115.63,19.92620773]
[1744260673058,9.75320773,115.68,115.63,19.92620773]
[1744260673233,18.39780773,115.68,115.63,19.92620773]
[1744260673744,0.03,115.68,115.64,28.37285659]
[1744260673950,0.03,115.68,115.65,7.98]
[1744260674450,0.03,115.68,115.66,8.646]
[1744260677750,0.03,115.68,115.66,18.36920773]
[1744260678529,0.03,115.68,115.67,28.37285659]
[1744260679246,0.03,115.68,115.67,29.98585659]
[1744260679631,0.03,115.68,115.67,38.63105659]
[1744260680539,0.03,115.68,115.67,19.98140773]
[1744260681580,0.03,115.68,115.67,10.2582]
[1744260682667,0.03,115.68,115.66,8.6456]
[1744260684740,9.75320773,115.68,115.65,8.6464]
[1744260685552,0.03,115.68,115.65,8.6464]
[1744260685756,9.75320773,115.68,115.65,8.6464]
[1744260687877,0.03,115.68,115.66,9.72320773]
[1744260688075,0.03,115.68,115.67,8.6452]
[1744260689246,0.03,115.68,115.65,8.6465]
[1744260689657,9.75320773,115.68,115.65,8.6465]
[1744260689858,0.03,115.68,115.65,8.6465]
[1744260690175,0.03,115.68,115.65,18.36970773]
[1744260691881,0.03,115.68,115.66,9.72320773]
[1744260692382,0.03,115.68,115.67,16.6252]
[1744260695761,0.03,115.68,115.67,7.98]
[1744260695961,0.03,115.68,115.67,16.6252]
[1744260697075,0.03,115.68,115.67,8.6452]
[1744260697689,0.03,115.68,115.66,8.646]
[1744260698481,0.03,115.68,115.65,16.6265]
[1744260700290,0.03,115.68,115.65,26.34970773]
[1744260700858,0.03,115.68,115.65,16.6265]
[1744260702083,9.75320773,115.68,115.65,7.98]
[1744260703186,8.6452,115.67,115.65,7.98]
[1744260703565,24.96660773,115.68,115.65,7.98]
[1744260704123,9.72320773,115.67,115.65,7.98]
[1744260705888,9.72320773,115.66,115.62,8.6487]
[1744260706266,9.72320773,115.65,115.61,16.6093]
[1744260706467,9.72320773,115.66,115.61,16.6093]
[1744260706766,9.72320773,115.66,115.61,26.33250773]
[1744260706967,9.72320773,115.65,115.61,7.96]
[1744260707377,9.72320773,115.64,115.61,7.96]
[1744260708002,9.72320773,115.63,115.61,7.96]
[1744260708398,9.72320773,115.62,115.61,7.96]
[1744260711906,16.8091,115.64,115.61,7.96]
[1744260712109,9.72320773,115.63,115.61,7.96]
[1744260712489,8.1615,115.64,115.61,16.6094]
[1744260712683,8.1615,115.67,115.63,9.72320773]
[1744260713305,0.03,115.68,115.64,9.72320773]
[1744260713485,0.03,115.68,115.65,7.98]
[1744260713686,0.03,115.68,115.65,17.70320773]
[1744260713881,0.03,115.68,115.65,7.98]
[1744260714092,9.75320773,115.68,115.65,7.98]
[1744260715814,18.39800773,115.68,115.65,7.98]
[1744260716582,9.72320773,115.67,115.65,7.98]
[1744260717698,9.75320773,115.68,115.65,7.98]
[1744260717904,9.75320773,115.68,115.65,16.6267]
[1744260718702,0.03,115.68,115.65,16.6267]
[1744260722220,9.75320773,115.68,115.65,16.6267]
[1744260723290,0.03,115.68,115.65,16.6267]
[1744260723611,0.03,115.68,115.65,26.34990773]
[1744260723803,0.03,115.68,115.65,16.6267]
[1744260725715,9.75320773,115.68,115.65,16.6267]
[1744260728121,0.03,115.68,115.65,16.6267]
[1744260728793,9.75320773,115.68,115.65,7.98]
[1744260728998,0.03,115.68,115.65,7.98]
[1744260729211,9.75320773,115.68,115.65,16.6265]
[1744260729712,0.03,115.68,115.65,26.34970773]
[1744260731536,0.03,115.68,115.65,16.6265]
[1744260731827,9.75320773,115.68,115.65,16.6265]
[1744260734243,0.03,115.68,115.65,16.6265]
[1744260734611,0.03,115.68,115.65,26.34970773]
[1744260735310,0.03,115.68,115.65,16.6265]
[1744260743636,9.72320773,115.67,115.65,7.98]
[1744260744644,9.72320773,115.66,115.65,7.98]
[1744260746510,0.03,115.68,115.65,7.98]
[1744260746511,9.72320773,115.67,115.65,7.98]
[1744260747114,9.75320773,115.68,115.65,16.6267]
[1744260747430,0.03,115.68,115.65,16.6267]
[1744260748328,9.75320773,115.68,115.65,16.6267]
[1744260750511,0.03,115.68,115.65,16.6267]
[1744260754015,9.75320773,115.68,115.65,16.6267]
[1744260756037,18.39790773,115.68,115.65,7.98]
[1744260756627,9.75320773,115.68,115.65,16.6267]
[1744260756834,18.39770773,115.68,115.65,16.6267]
[1744260757640,9.75320773,115.68,115.65,16.6267]
[1744260758516,0.03,115.68,115.65,16.6267]
[1744260759535,9.75320773,115.68,115.65,7.98]
[1744260761539,18.39780773,115.68,115.65,7.98]
[1744260762420,9.72320773,115.67,115.65,7.98]
[1744260763840,0.03,115.68,115.65,7.98]
[1744260764039,9.75320773,115.68,115.65,7.98]
[1744260764637,18.39780773,115.68,115.65,7.98]
[1744260765942,0.03,115.68,115.65,16.6267]
[1744260766116,9.75320773,115.68,115.65,7.98]
[1744260768341,18.39820773,115.68,115.65,7.98]
[1744260772139,9.72320773,115.67,115.65,7.98]
[1744260772338,9.72320773,115.66,115.62,7.96]
[1744260772543,9.72320773,115.65,115.61,23.63596783]
[1744260772841,9.72320773,115.64,115.61,21.42286783]
[1744260773031,8.6475,115.64,115.61,21.42286783]
[1744260773241,8.6475,115.64,115.61,7.96]
[1744260775147,18.37030773,115.65,115.61,16.6096]
[1744260776547,18.37030773,115.65,115.61,7.96]
[1744260776843,8.6471,115.65,115.61,7.96]
[1744260777051,9.72320773,115.64,115.61,7.96]
[1744260778237,9.72320773,115.63,115.61,7.96]
[1744260778437,9.72320773,115.63,115.59,315.01410773]
[1744260778438,9.72320773,115.62,115.59,304.6]
[1744260778637,9.72320773,115.62,115.59,7.96]
[1744260780559,18.37220773,115.62,115.59,7.96]
[1744260780929,9.72320773,115.61,115.59,7.96]
[1744260781346,9.72320773,115.6,115.59,7.96]
[1744260781560,9.72320773,115.6,115.56,16.6131]
[1744260781864,9.72320773,115.59,115.56,16.6131]
[1744260782228,9.72320773,115.59,115.56,7.96]
[1744260782546,9.72320773,115.57,115.56,7.96]
[1744260782945,9.72320773,115.57,115.55,13.46286783]
[1744260783155,8.6513,115.59,115.55,13.46286783]
[1744260783364,9.72320773,115.58,115.54,8.6546]
[1744260783662,9.72320773,115.57,115.53,26.33850773]
[1744260783842,9.72320773,115.57,115.53,16.6153]
[1744260784042,9.72320773,115.57,115.53,26.33850773]
[1744260785253,9.72320773,115.58,115.54,9.72320773]
[1744260785454,9.72320773,115.58,115.53,16.6153]
[1744260785769,9.72320773,115.58,115.54,9.72320773]
[1744260786269,9.72320773,115.58,115.53,26.33850773]
[1744260786698,9.72320773,115.58,115.53,47.97790773]
[1744260787649,9.72320773,115.58,115.54,9.72320773]
[1744260788759,9.72320773,115.58,115.53,38.2547]
[1744260788966,8.6513,115.59,115.54,9.72320773]
[1744260789260,9.72320773,115.58,115.54,9.72320773]
[1744260789455,9.72320773,115.59,115.54,9.72320773]
[1744260789961,9.72320773,115.58,115.53,47.97790773]
[1744260790865,18.37520773,115.58,115.53,47.97790773]
[1744260791851,9.72320773,115.57,115.53,16.6153]
[1744260792164,9.72320773,115.57,115.53,26.33850773]
[1744260792367,15.1128,115.6,115.54,9.72320773]
[1744260792552,9.72320773,115.59,115.54,9.72320773]
[1744260793778,9.72320773,115.59,115.55,8.6542]
[1744260793779,18.37460773,115.59,115.55,8.6542]
[1744260796665,15.1125,115.6,115.55,8.6542]
[1744260796862,9.72320773,115.6,115.56,9.72320773]
[1744260797047,9.72320773,115.61,115.57,7.96]
[1744260799188,18.37290773,115.61,115.57,16.6122]
[1744260799869,9.72320773,115.6,115.57,16.6122]
[1744260800049,9.72320773,115.58,115.57,7.96]
[1744260801160,9.72320773,115.58,115.54,16.6147]
[1744260801477,9.72320773,115.56,115.53,7.96]
[1744260803247,9.72320773,115.56,115.53,16.6154]
[1744260806495,18.37670773,115.56,115.53,16.6154]
[1744260806993,18.37670773,115.56,115.53,7.96]
[1744260807682,9.72320773,115.55,115.53,7.96]
[1744260808069,8.6535,115.56,115.53,7.96]
[1744260808070,9.72320773,115.54,115.53,7.96]
[1744260808257,9.72320773,115.54,115.52,0.063]
[1744260808463,9.72320773,115.53,115.52,0.063]
[1744260809285,38.89283092,115.55,115.52,0.063]
[1744260809461,8.6557,115.53,115.52,0.063]
[1744260809661,9.72320773,115.53,115.52,0.063]
[1744260810181,6.2996,115.55,115.52,0.063]
[1744260810362,9.72320773,115.55,115.52,0.063]
[1744260810883,9.72320773,115.54,115.52,0.063]
[1744260812863,8.6538,115.56,115.52,0.063]
[1744260813062,9.72320773,115.55,115.52,0.063]
[1744260813581,6.58392314,115.58,115.53,9.72320773]
[1744260813582,6.2996,115.58,115.53,9.72320773]
[1744260813886,16.02280773,115.58,115.53,9.72320773]
[1744260814067,9.72320773,115.57,115.53,8.6557]
[1744260814269,18.37560773,115.58,115.53,18.37890773]
[1744260814481,9.72320773,115.57,115.53,8.6557]
[1744260819383,9.72320773,115.56,115.53,8.6557]
[1744260820874,9.72320773,115.57,115.53,8.6557]
[1744260822882,81.78432314,115.6,115.53,40.01830773]
[1744260823204,9.72320773,115.59,115.54,9.72320773]
[1744260823396,9.72320773,115.58,115.53,40.01830773]
[1744260824091,6.2996,115.61,115.55,9.72320773]
[1744260824268,9.72320773,115.61,115.56,9.72320773]
[1744260824470,9.72320773,115.61,115.56,17.68320773]
[1744260825094,9.72320773,115.61,115.57,8.6527]
[1744260828897,18.37300773,115.61,115.57,8.6527]
[1744260829293,9.72320773,115.6,115.57,8.6527]
[1744260834496,9.72320773,115.58,115.54,7.96]
[1744260834671,9.72320773,115.56,115.52,15.04066783]
[1744260834875,9.72320773,115.55,115.52,15.04066783]
[1744260835475,9.72320773,115.55,115.52,1.5778]
[1744260835883,9.72320773,115.55,115.52,10.2339]
[1744260836598,9.72320773,115.55,115.52,1.5778]
[1744260836775,8.6543,115.55,115.52,1.5778]
[1744260836975,9.72320773,115.55,115.52,10.2342]
[1744260839397,18.37710773,115.56,115.52,10.2342]
[1744260840098,9.72320773,115.56,115.52,19.95740773]
[1744260840298,9.72320773,115.57,115.52,19.95740773]
[1744260840496,9.72320773,115.57,115.52,41.59860773]
[1744260841695,9.72320773,115.56,115.52,10.2342]
[1744260841903,9.72320773,115.55,115.52,1.5778]
[1744260843786,18.37760773,115.55,115.52,1.5778]
[1744260844810,8.6538,115.56,115.52,10.2341]
[1744260844997,18.37700773,115.56,115.52,10.2341]
[1744260845727,9.72320773,115.56,115.52,10.2341]
[1744260847625,8.6524,115.58,115.52,19.95730773]
[1744260847785,9.72320773,115.57,115.52,19.95730773]
[1744260848587,9.72320773,115.57,115.53,7.96]
[1744260849807,9.72320773,115.57,115.53,16.615]
[1744260851004,18.37590773,115.57,115.53,16.615]
[1744260851487,9.72320773,115.57,115.53,16.615]
[1744260852513,8.6524,115.58,115.53,16.615]
[1744260852701,9.72320773,115.57,115.53,16.615]
[1744260853618,142.30415406,115.6,115.53,16.615]
[1744260853787,9.72320773,115.58,115.53,26.33820773]
[1744260854509,9.72320773,115.58,115.53,47.97760773]
[1744260855208,9.72320773,115.59,115.54,9.72320773]
[1744260855704,9.72320773,115.59,115.55,8.6542]
[1744260857207,8.6509,115.6,115.55,18.37740773]
[1744260857410,18.40240773,115.62,115.57,9.72320773]
[1744260857714,0.03,115.62,115.58,18.37450773]
[1744260857897,9.75320773,115.62,115.58,8.6513]
[1744260858906,18.40240773,115.62,115.58,8.6513]
[1744260859207,9.72320773,115.61,115.58,8.6513]
[1744260860312,0.03,115.62,115.58,8.6513]
[1744260860827,9.75320773,115.62,115.58,8.6513]
[1744260861296,9.72320773,115.61,115.57,16.5926]
[1744260862331,18.37340773,115.61,115.57,16.5926]
[1744260863427,9.72320773,115.61,115.57,16.5926]
[1744260865224,9.72320773,115.61,115.57,26.31580773]
[1744260866032,8.6793,115.62,115.57,26.31580773]
[1744260866033,0.03,115.62,115.59,9.72320773]
[1744260867232,0.03,115.62,115.6,8.6505]
[1744260867925,0.03,115.62,115.61,19.17440773]
[1744260868127,0.03,115.62,115.61,37.82405659]
[1744260869725,0.03,115.62,115.61,46.47375659]
[1744260870818,0.03,115.62,115.61,50.75544523]
[1744260872603,0.03,115.62,115.61,41.0322375]
[1744260872803,0.03,115.62,115.61,50.75544523]
[1744260875807,0.0001,115.62,115.61,51.03976837]
[1744260876015,0.0001,115.62,115.61,20.87138864]
[1744260876509,0.0001,115.62,115.61,30.59459637]
[1744260876710,0.0001,115.62,115.61,20.87138864]
[1744260878301,0.0001,115.62,115.61,49.52856837]
[1744260881447,0.0001,115.62,115.61,39.5210375]
[1744260881744,0.0001,115.62,115.61,49.24424523]
[1744260882043,0.0001,115.62,115.61,16.5897]
[1744260883047,0.0001,115.62,115.61,30.60595915]
[1744260885019,0.0001,115.62,115.61,16.5897]
[1744260887140,0.0001,115.62,115.61,20.8095565]
[1744260889843,0.0001,115.62,115.61,30.53276423]
[1744260890044,0.0001,115.62,115.59,8.6512]
[1744260890226,0.0001,115.62,115.6,7.94]
[1744260891234,9.72320773,115.61,115.58,8.6515]
[1744260892650,9.72320773,115.61,115.57,16.5923]
[1744260892831,9.72320773,115.6,115.56,296.7]
[1744260893026,9.72320773,115.6,115.56,304.64]
[1744260893229,11.30370773,115.61,115.56,323.01630773]
[1744260894849,11.30370773,115.61,115.56,344.65000773]
[1744260896246,11.30370773,115.61,115.56,348.9352777]
[1744260897439,0.0001,115.62,115.58,9.72320773]
[1744260897636,0.0001,115.62,115.59,9.72320773]
[1744260898836,0.0001,115.62,115.58,9.72320773]
[1744260899755,0.0001,115.62,115.58,8.652]
[1744260900053,9.72330773,115.62,115.58,8.652]
[1744260901053,9.72320773,115.61,115.57,8.6527]
[1744260901654,9.72330773,115.62,115.57,18.37590773]
[1744260901950,18.37290773,115.61,115.57,8.6527]
[1744260903238,9.72320773,115.61,115.57,8.6527]
[1744260905355,8.6494,115.62,115.57,8.6527]
[1744260905852,9.72320773,115.61,115.57,8.6527]
[1744260907451,9.72330773,115.62,115.57,8.6527]
[1744260909159,18.37230773,115.62,115.57,8.6527]
[1744260910756,9.72320773,115.61,115.57,8.6527]
[1744260913855,18.37230773,115.62,115.57,8.6527]
[1744260914557,9.72320773,115.61,115.57,8.6527]
[1744260916637,9.72320773,115.58,115.56,7.94]
[1744260917363,16.25130773,115.59,115.56,7.94]
[1744260918547,16.25130773,115.59,115.56,16.5929]
[1744260918763,16.25130773,115.59,115.56,7.94]
[1744260918964,9.72320773,115.58,115.56,7.94]
[1744260919343,9.72320773,115.58,115.56,16.5935]
[1744260919548,16.25130773,115.59,115.56,16.5935]
[1744260919754,9.72320773,115.58,115.56,16.5935]
[1744260920359,6.5281,115.59,115.56,16.5935]
[1744260920568,9.72320773,115.58,115.56,16.5935]
[1744260921464,9.72320773,115.58,115.56,7.94]
[1744260921669,18.37520773,115.58,115.56,7.94]
[1744260923170,9.72320773,115.58,115.56,7.94]
[1744260925165,9.72320773,115.58,115.56,16.5935]
[1744260925371,6.5281,115.59,115.56,16.5935]
[1744260925568,16.25130773,115.59,115.56,16.5935]
[1744260927272,9.72320773,115.58,115.56,7.94]
[1744260927851,16.25130773,115.59,115.56,7.94]
[1744260930181,9.72320773,115.58,115.56,7.94]
[1744260930557,9.72320773,115.57,115.56,7.94]
[1744260930752,36.8074,115.59,115.53,0.063]
[1744260930956,9.72320773,115.55,115.53,8.003]
[1744260931365,9.72320773,115.56,115.53,8.003]
[1744260933482,9.72320773,115.58,115.54,28.37285659]
[1744260933661,16.25130773,115.59,115.54,28.37285659]
[1744260934486,9.72320773,115.59,115.55,8.6542]
[1744260934994,1.5081,115.6,115.55,8.6542]
[1744260935192,9.72320773,115.59,115.55,8.6542]
[1744260938085,9.72320773,115.59,115.55,16.5942]
[1744260939778,9.72320773,115.58,115.55,16.5942]
[1744260940880,9.72320773,115.57,115.55,7.94]
[1744260941063,8.6512,115.59,115.55,16.5941]
[1744260941264,9.72320773,115.57,115.55,16.5941]
[1744260942184,9.72320773,115.57,115.54,8.655]
[1744260942780,9.72320773,115.57,115.54,27.30464886]
[1744260942966,9.72320773,115.58,115.54,27.30464886]
[1744260945180,9.72320773,115.58,115.54,48.94214886]
[1744260945379,9.72320773,115.59,115.54,58.66535659]
[1744260946282,9.72320773,115.58,115.54,48.94214886]
[1744260946786,9.72320773,115.57,115.54,8.655]
[1744260946985,9.72320773,115.56,115.54,8.655]
[1744260947287,9.72320773,115.56,115.53,16.6583]
[1744260948685,9.72320773,115.57,115.53,38.2977]
[1744260950471,9.72320773,115.57,115.53,48.02090773]
[1744260952072,15.84220773,115.58,115.53,48.02090773]
[1744260952691,15.84220773,115.58,115.54,9.72320773]
[1744260953392,9.72320773,115.59,115.55,9.72320773]
[1744260953572,11.23130773,115.6,115.55,9.72320773]
[1744260953777,9.72320773,115.6,115.56,9.72320773]
[1744260954172,6.119,115.61,115.56,9.72320773]
[1744260954377,9.72320773,115.6,115.56,9.72320773]
[1744260954577,9.72320773,115.6,115.57,8.6527]
[1744260955482,6.119,115.61,115.57,8.6527]
[1744260955684,9.72320773,115.6,115.57,8.6527]
[1744260956591,9.72320773,115.6,115.56,8.6535]
[1744260959095,9.72320773,115.59,115.56,8.6535]
[1744260960295,9.72320773,115.59,115.55,30.289]
[1744260961809,9.72320773,115.6,115.55,38.229]
[1744260964804,9.72320773,115.59,115.55,38.229]
[1744260966099,9.72320773,115.6,115.57,8.6527]
[1744260966283,8.6494,115.62,115.57,8.6527]
[1744260966483,9.72320773,115.61,115.57,8.6527]
[1744260967295,9.72320773,115.6,115.57,8.6527]
[1744260967490,9.72320773,115.59,115.57,8.6527]
[1744260967691,9.72320773,115.59,115.56,8.6532]
[1744260969609,9.72320773,115.57,115.53,0.063]
[1744260969789,9.72320773,115.55,115.53,0.063]
[1744260972394,18.37750773,115.55,115.53,0.063]
[1744260972591,9.72320773,115.54,115.53,0.063]
[1744260973789,18.37820773,115.54,115.53,0.063]
[1744260976290,9.72320773,115.54,115.53,0.063]
[1744260977211,16.09890773,115.55,115.53,0.063]
[1744260977410,9.72320773,115.55,115.53,0.063]
[1744260977611,9.72320773,115.56,115.53,0.063]
[1744260979018,9.72320773,115.55,115.53,0.063]
[1744260982899,9.72320773,115.56,115.53,0.063]
[1744260983798,6.3757,115.58,115.53,0.063]
[1744260984000,9.72320773,115.57,115.53,0.063]
[1744260984802,9.72320773,115.57,115.53,8.7187]
[1744260986416,9.72320773,115.57,115.53,18.44190773]
[1744260987231,9.72320773,115.57,115.53,0.063]
[1744260990829,9.72320773,115.56,115.53,0.063]
[1744260994953,9.72320773,115.54,115.53,0.063]
[1744260997459,9.72320773,115.55,115.53,0.063]
[1744260999073,98.1098,115.59,115.53,9.78620773]
[1744260999240,9.72320773,115.59,115.54,9.72320773]
[1744260999552,9.72320773,115.6,115.55,28.37285659]
[1744260999748,16.6411,115.62,115.55,28.37285659]
[1744260999946,0.0001,115.62,115.59,26.0]
[1744261000127,0.0001,115.62,115.61,9.72320773]
[1744261000331,0.03,115.66,115.64,26.0]
[1744261000528,0.03,115.66,115.63,7.94]
[1744261000735,0.03,115.66,115.63,17.66320773]
[1744261000933,0.03,115.66,115.63,7.94]
[1744261001138,0.03,115.66,115.64,8.6475]
[1744261003735,0.03,115.66,115.64,18.37070773]
[1744261003931,0.03,115.66,115.64,8.6475]
[1744261006153,9.75320773,115.66,115.63,16.5881]
[1744261006453,9.72320773,115.65,115.63,7.94]
[1744261006850,9.75320773,115.66,115.63,7.94]
[1744261008359,0.03,115.66,115.63,7.94]
[1744261008539,9.75320773,115.66,115.63,7.94]
[1744261009558,18.39940773,115.66,115.63,7.94]
[1744261009756,9.72320773,115.65,115.61,8.6496]
[1744261010638,9.75320773,115.66,115.61,18.37280773]
[1744261012359,9.75320773,115.66,115.61,22.65665796]
[1744261013061,9.72320773,115.65,115.61,8.6496]
[1744261015143,9.72320773,115.65,115.61,18.37280773]
[1744261016167,8.676,115.66,115.61,18.37280773]
[1744261016466,9.72320773,115.65,115.61,18.37280773]
[1744261018040,9.75320773,115.66,115.61,18.37280773]
[1744261018375,18.39930773,115.66,115.61,18.37280773]
[1744261018853,9.72320773,115.64,115.6,16.5701]
[1744261020073,9.72320773,115.63,115.6,7.92]
[1744261020375,9.72320773,115.61,115.58,89.8513]
[1744261020578,9.72320773,115.61,115.58,8.6516]
[1744261021065,9.72320773,115.61,115.58,8.652]
[1744261021447,9.72320773,115.64,115.59,9.72320773]
[1744261021949,9.72320773,115.63,115.58,30.282]
[1744261022248,9.72320773,115.63,115.58,18.37520773]
[1744261026271,18.37100773,115.64,115.59,9.72320773]
[1744261026650,8.6471,115.65,115.6,8.6505]
[1744261027061,9.72320773,115.64,115.6,8.6505]
[1744261029163,90.1764,115.66,115.6,8.6505]
[1744261029375,9.72320773,115.64,115.6,8.6505]
[1744261030281,0.03,115.66,115.61,9.72320773]
[1744261030574,9.75320773,115.66,115.61,9.72320773]
[1744261031072,9.75320773,115.66,115.62,8.649]
[1744261032375,0.03,115.66,115.62,18.37220773]
[1744261032560,0.03,115.66,115.63,7.92]
[1744261033158,0.03,115.66,115.64,8.6475]
[1744261033755,9.75320773,115.66,115.63,16.5678]
[1744261034383,9.75320773,115.66,115.63,7.92]
[1744261035680,9.75320773,115.66,115.63,16.5682]
[1744261036176,9.75320773,115.66,115.63,7.92]
[1744261038074,9.75320773,115.66,115.63,16.5682]
[1744261038284,0.03,115.66,115.63,16.5682]
[1744261040262,9.75320773,115.66,115.63,16.5682]
[1744261042575,0.03,115.66,115.63,16.5682]
[1744261042784,0.03,115.66,115.63,26.29140773]
[1744261043160,0.03,115.66,115.63,16.5682]
[1744261045179,0.03,115.66,115.63,26.29140773]
[1744261045661,0.03,115.66,115.63,47.91200773]
[1744261045861,0.03,115.66,115.64,9.72320773]
[1744261046076,0.03,115.66,115.65,9.72320773]
[1744261048683,0.03,115.66,115.65,18.36990773]
[1744261049787,0.03,115.66,115.64,8.647]
[1744261049985,9.72320773,115.65,115.62,16.569]
[1744261051485,9.75320773,115.66,115.62,16.569]
[1744261052780,9.75320773,115.66,115.62,26.29220773]
[1744261053761,0.03,115.66,115.62,26.29220773]
[1744261053969,9.75320773,115.66,115.62,26.29220773]
[1744261054166,0.03,115.66,115.62,26.29220773]
[1744261054887,9.75320773,115.66,115.62,26.29220773]
[1744261055885,9.75320773,115.66,115.62,16.569]
[1744261056471,0.03,115.66,115.62,16.569]
[1744261056679,9.75320773,115.66,115.62,16.569]
[1744261056874,18.39920773,115.66,115.62,16.569]
[1744261057070,9.72320773,115.63,115.58,7.983]
[1744261057279,9.72320773,115.62,115.58,26.35780773]
[1744261057486,9.72320773,115.63,115.58,26.35780773]
[1744261057777,9.72320773,115.63,115.58,16.6346]
[1744261057977,9.72320773,115.62,115.58,7.983]
[1744261058494,8.6471,115.65,115.59,18.64964886]
[1744261058674,9.72320773,115.63,115.58,16.6349]
[1744261058993,9.72320773,115.63,115.58,26.35810773]
[1744261059170,9.72320773,115.62,115.58,7.983]
[1744261059490,9.72320773,115.61,115.58,7.983]
[1744261059790,9.72320773,115.6,115.58,0.063]
[1744261059993,9.72320773,115.59,115.58,0.063]
[1744261060374,18.37440773,115.59,115.58,0.063]
[1744261060879,9.72320773,115.59,115.58,0.063]
[1744261061077,6.1339,115.61,115.58,0.063]
[1744261061402,15.85710773,115.61,115.58,0.063]
[1744261061574,6.1339,115.61,115.58,0.063]
[1744261062289,15.85710773,115.61,115.58,0.063]
[1744261063685,9.72320773,115.6,115.58,0.063]
[1744261064187,9.72320773,115.59,115.58,0.063]
[1744261065195,9.72320773,115.6,115.58,0.063]
[1744261065899,14.7837,115.61,115.58,0.063]
[1744261065900,9.72320773,115.59,115.58,0.063]
[1744261068697,14.7837,115.61,115.58,0.063]
[1744261068897,9.72320773,115.59,115.58,0.063]
[1744261071198,9.72320773,115.6,115.58,0.063]
[1744261071399,9.72320773,115.61,115.58,0.063]
[1744261073585,9.72320773,115.6,115.58,0.063]
[1744261075807,9.72320773,115.61,115.58,0.063]
[1744261076602,9.72320773,115.6,115.58,0.063]
[1744261077306,9.72320773,115.59,115.58,0.063]
[1744261077608,9.72320773,115.6,115.58,0.063]
[1744261078107,9.72320773,115.59,115.58,0.063]
[1744261078602,9.72320773,115.6,115.58,0.063]
[1744261084095,16.8322,115.63,115.58,0.063]
[1744261084313,9.72320773,115.62,115.58,0.063]
[1744261085125,9.72320773,115.6,115.58,0.063]
[1744261088718,18.37390773,115.6,115.58,0.063]
[1744261089010,9.72320773,115.59,115.58,0.063]
[1744261089518,8.6501,115.61,115.58,0.063]
[1744261089815,9.72320773,115.6,115.58,0.063]
[1744261090915,8.6501,115.61,115.58,0.063]
[1744261091217,9.72320773,115.6,115.58,0.063]
[1744261096326,9.72320773,115.61,115.58,0.063]
[1744261097408,9.72320773,115.6,115.58,0.063]
[1744261098526,9.72320773,115.59,115.58,0.063]
[1744261100729,18.65873087,115.59,115.58,0.063]
[1744261111755,37.30837973,115.59,115.58,0.063]
[1744261113258,8.651,115.6,115.58,0.063]
[1744261113458,9.72320773,115.59,115.58,0.063]
[1744261113663,9.72320773,115.6,115.58,0.063]
[1744261114041,9.72320773,115.59,115.58,0.063]
[1744261115861,10.46456287,115.59,115.58,0.063]
[1744261126973,10.46456287,115.6,115.58,0.063]